Workbook

Sheet 市级基金17年收入
A1: 附件2：
A2: 2018年市本级政府性基金收入预算表
B3: 单位：万元
A4: 项目 | B4: 预算数 | C4: 备注
A5: 一、新型墙体材料专项基金收入
A6: 二、农业土地开发资金收入
A7: 三、国有土地使用权出让收入 | B7: =SUM(XFD8:XFD11) -> 170000
A8: 土地出让价款收入 | B8: 173179
A9: 补缴的土地价款
A10: 缴纳新增建设用地土地有偿使用费 | B10: -3179
A11: 其他土地出让收入
A12: 三、彩票公益金收入
A13: 福利彩票公益金收入
A14: 体育彩票公益金收入
A15: 四、城市基础设施配套费收入 | B15: 2000
A16: 五、污水处理费收入 | B16: 2500
A17: 六、其他政府性基金收入
A19: 收入合计 | B19: =XFD6+XFD7+XFD12+XFD15+XFD16+XFD17 -> 174500
A20: 转移性收入 | B20: =XFD21+XFD32+XFD36+XFD37 -> 10247
A21: 一、政府性基金转移收入 | B21: =XFD22+XFD31 -> 1611
A22: 政府性基金补助收入 | B22: =SUM(XFD23:XFD30) -> 1611
A23: 大中型水库库区基金补助
A24: 车辆通行费安排的补助
A25: 地方旅游开发项目补助
A26: 社会福利的彩票公益金补助 | B26: 1070
A27: 体育事业的彩票公益金补助 | B27: 541
A28: 红十字事业的彩票公益金补助
A29: 残疾人事业的彩票公益金补助
A30: 城乡医疗救助的彩票公益金补助
A31: 政府性基金上解收入
A32: 二、 债务转贷收入
A33: 地方政府专项债务转贷收入
A34: 国有土地使用权出让金债务转贷收入
A35: 土地储备专项债券转贷收入
A36: 三、 上年结余收入 | B36: 8636
A37: 四、 调入资金
A38: 收入总计 | B38: =XFD19+XFD20 -> 184747

Sheet 市级17年基金支出
A1: 附件2：
A2: 2018年市本级政府性基金支出预算表
B3: 单位：万元
A4: 项目 | B4: 预算数 | C4: 备注
A5: 一、社会保障和就业支出 | B5: =XFD6 -> 0
A6: 大中型水库移民后期扶持基金支出 | B6: 0
A7: 其他大中型水库移民后期扶持资金支出
A8: 二、城乡社区支出 | B8: =XFD9+XFD19+XFD20+XFD21+XFD25 -> 170000
A9: 国有土地使用权出让收入及对应专项债务收入安排的支出 | B9: =SUM(XFD10:XFD18) -> 158316
A10: 征地和拆迁补偿支出 | B10: 47600
A11: 土地开发支出 | B11: 10200
A12: 城市建设支出 | B12: 82467
A13: 农村基础设施建设支出 | B13: 1000
A14: 土地出让业务支出 | B14: 3400
A15: 廉租住房支出 | B15: 625
A16: 棚户区改造支出 | B16: 3000
A17: 公共租赁住房支出 | B17: 625
A18: 其他国有土地使用权出让收入安排的支出 | B18: 9399
A19: 农业土地开发资金及对应专项债务收入安排的支出 | B19: 4884
A20: 新增建设用地有偿使用费安排的支出
A21: 城市基础设施配套费安排的支出 | B21: =SUM(XFD22:XFD24) -> 3700
A22: 城市公共设施 | B22: 2144
A23: 城市环境卫生 | B23: 1556
A24: 其他城市基础设施配套费安排的支出 | B24: 0
A25: 污水处理费及对应专项债务收入安排的支出 | B25: =SUM(XFD26:XFD27) -> 3100
A26: 污水处理设施建设和运营 | B26: 3100
A27: 其他污水处理费安排的支出
A28: 三、交通运输支出 | B28: =XFD29 -> 0
A29: 车辆通行费安排的支出 | B29: 0
A30: 其他车辆通行费安排的支出
A31: 四、资源勘探信息等支出 | B31: 664
A32: 新型墙体材料专项基金支出 | B32: =SUM(XFD33:XFD37) -> 664
A33: 技改贴息和补助 | B33: 200
A34: 技术研发和推广
A35: 示范项目补贴
A36: 宣传和培训 | B36: 300
A37: 其他新型墙体材料专项基金支出 | B37: 164
A38: 五、商业服务业等支出 | B38: =XFD39 -> 0
A39: 旅游发展基金支出 | B39: 0
A40: 地方旅游开发项目补助
A41: 六、其他支出 | B41: 2480
A42: 彩票公益金安排的支出 | B42: =SUM(XFD43:XFD47) -> 2480
A43: 用于社会福利的彩票公益金支出 | B43: 1710
A44: 用于体育事业的彩票公益金支出 | B44: 770
A45: 用于红十字事业的彩票公益金支出
A46: 用于残疾人事业的彩票公益金支出
A47: 用于城乡医疗求助的彩票公益金支出
A48: 支出合计 | B48: =XFD5+XFD8+XFD28+XFD31+XFD38+XFD41 -> 173144
A49: 转移性支出 | B49: =XFD50+XFD53+XFD54+XFD55 -> 11603
A50: 政府性基金转移支付
A51: 政府性基金补助支出
A52: 政府性基金上解支出
A53: 调出资金 | B53: 6800
A54: 结转下年 | B54: 4803
A55: 债务转贷支出
A56: 国有土地使用权出让金债务转贷支出
A57: 支出总计 | B57: =XFD48+XFD49 -> 184747
